Cogmind - Beta 13 @@@ ROGUE MODE // 2024.06.07 @ 22:24:29 Player: morimori Result: Destroyed by Reinforced Deuterium Engine chain reaction Performance ------------- Evolutions (0) 0 Regions Visited (4) 800 Robots Destroyed (29) 145 Value Destroyed (521) 521 Prototype IDs (28) 560 Alien Tech Used (0) 0 Bonus (300) 300 TOTAL SCORE: 2326 Bonus ------- Aligned with FarCom 300 Cogmind --------- Core Integrity 0/250 Matter 295/300 Energy 123/125 System Corruption 0% Temperature Cool (0) Movement Rolling (140) Ox4 Location -9/Mines Parts ------- > --- POWER (1) -------- Light Ion Engine > --- PROPULSION (2) --- Wheel Wheel > --- UTILITY (2) ------ Huge Storage Unit > --- WEAPON (2) ------- Light Assault Rifle Light Assault Rifle > --- INVENTORY (25) --- Light Nuclear Core Light Nuclear Core Aluminum Leg Aluminum Leg Aluminum Leg Aluminum Leg Wheel Heat Sink Improved Heat Sink High-capacity Storage Unit High-capacity Matter Pod (200) Visual Processing Unit Sensor Array Improved Terrain Scanner Seismic Detector PSU Rigger Chronowheel Particle Gun Light Assault Rifle Light Assault Rifle Grenade Launcher Grenade Launcher Peak State ------------ > --- POWER ------------ Light Ion Engine > --- PROPULSION ------- Wheel Wheel > --- UTILITY ---------- Huge Storage Unit Medium Armor Plating > --- WEAPON ----------- Light Assault Rifle Light Assault Rifle > --- INVENTORY -------- Light Nuclear Core Light Nuclear Core Reinforced Deuterium Engine Reinforced Deuterium Engine Reinforced Deuterium Engine Aluminum Leg Aluminum Leg Aluminum Leg Aluminum Leg Wheel Heat Sink Improved Heat Sink High-capacity Storage Unit High-capacity Matter Pod Visual Processing Unit Sensor Array Improved Terrain Scanner Seismic Detector PSU Rigger Chronowheel Particle Gun Light Assault Rifle Light Assault Rifle Grenade Launcher Grenade Launcher [Rating: 14] Favorites ----------- Power Light Ion Engine Engine Light Ion Engine Propulsion Wheel Wheel Wheel Utility Huge Storage Unit Device Seismic Detector Storage Huge Storage Unit Protection Medium Armor Plating Weapon Light Assault Rifle Ballistic Gun Light Assault Rifle Launcher Grenade Launcher Build | -11 -10 -10 -10 -9 ------- Run | Yrd Mat Min Exi Min Slots Evolved . | . . . . . Power . | . . . . . Propulsion . | . . . . . Utility . | . . . . . Weapon . | . . . . . Parts Attached 29 | 7 11 10 . 1 Power 4 | 1 1 2 . . Engine 4 | 1 1 2 . . Core . | . . . . . Reactor . | . . . . . Propulsion 7 | 2 3 2 . . Treads . | . . . . . Leg . | . . . . . Wheel 7 | 2 3 2 . . Hover . | . . . . . Flight . | . . . . . Utility 13 | 2 4 6 . 1 Device 5 | 1 2 2 . . Storage 2 | 1 1 . . . Processor . | . . . . . Hackware . | . . . . . Protection 6 | . 1 4 . 1 Artifact . | . . . . . Weapon 5 | 2 3 . . . Energy Gun . | . . . . . Energy Cannon . | . . . . . Ballistic Gun 4 | 2 2 . . . Ballistic Cannon . | . . . . . Launcher 1 | . 1 . . . Special Weapon . | . . . . . Impact Weapon . | . . . . . Slashing Weapon . | . . . . . Piercing Weapon . | . . . . . Special Melee Weapon . | . . . . . Unidentified Prototypes . | . . . . . Parts Lost 8 | . 3 4 . 1 Power 1 | . . 1 . . Propulsion 3 | . 2 1 . . Utility 4 | . 1 2 . 1 Weapon . | . . . . . Highest Loss Streak 2 | . 1 2 . 1 To Critical Strikes . | . . . . . Average Slot Usage (%) 99 | . 98 99 100 100 Engine 13 | . 13 13 14 14 Wheel 27 | . 28 27 28 28 Device 12 | . 12 10 14 . Storage 14 | . 14 14 14 14 Ballistic Gun 28 | . 28 28 28 28 Naked Turns . | . . . . . Heaviest Build 92 | 11 92 92 86 85 Greatest Support 26 | 26 26 20 20 20 Greatest Overweight (x) 8 | . 8 4 4 4 Average Overweight (x) 3 | . 3 4 4 4 Largest Inventory Capacity 25 | 8 25 25 25 25 Average Capacity 23 | 7 24 25 25 25 Most Carried 25 | 8 25 25 25 25 Average Carried 21 | 6 21 24 24 23 Final Capacity 25 | 8 25 25 25 25 Final Carried 25 | 8 25 25 25 22 Class Distribution -------------------- 100% | Mutant Dominant Class ---------------- Mutant | -10/Materials Mutant | -10/Mines Mutant | -10/Exiles Mutant | -9/Mines Resources | -11 -10 -10 -10 -9 ----------- Run | Yrd Mat Min Exi Min Matter Collected 863 | 312 202 304 45 . Remotely . | . . . . . Salvage Created 814 | 128 382 304 . . Parts 65 | 14 34 17 . . Haulers Intercepted 1 | . 1 . . . Recyclers Shooed 2 | . 1 1 . . Parts Field Recycled . | . . . . . Retrieved Matter . | . . . . . Parts Self-Destructed . | . . . . . Prevented . | . . . . . Kills | -11 -10 -10 -10 -9 ------- Run | Yrd Mat Min Exi Min Combat Hostiles Destroyed 13 | . 7 6 . . Guns 11 | . 5 6 . . AOE 2 | . 2 . . . Classes Destroyed 8 | 3 5 . . . Worker 5 | 2 2 1 . . Builder 2 | . 1 1 . . Tunneler 4 | 3 1 . . . Hauler 1 | . 1 . . . Recycler 1 | 1 . . . . Watcher 3 | . 3 . . . Swarmer 3 | . 3 . . . Grunt 10 | . 4 6 . . Best Kill Streak 9 | 2 9 2 . . Combat Bots Only 5 | . 5 2 . . Max Kills in Single Turn 5 | 1 5 1 . . Gunslinging . | . . . . . Exploded 2 | . 2 . . . Melee . | . . . . . Uniques/NPCs Destroyed . | . . . . . Combat | -11 -10 -10 -10 -9 -------- Run | Yrd Mat Min Exi Min Hostile Shots Fired 85 | . 33 48 . 4 Missed 18 | . 9 9 . . Damage Taken 1089 | . 354 543 . 192 Core 268 | . 94 87 . 87 Absorbed by Shields . | . . . . . Regen/Repaired (Parts) 35 | . 35 . . . Core Remaining (%) 100 | 100 . . . . Volleys Fired 105 | 21 38 46 . . Largest 2 | 2 2 2 . . Hottest 40 | 40 40 40 . . Shots Fired 209 | 42 75 92 . . Gun 208 | 42 74 92 . . Cannon . | . . . . . Launcher 1 | . 1 . . . Special . | . . . . . Kinetic 208 | 42 74 92 . . Thermal . | . . . . . Explosive 1 | . 1 . . . Electromagnetic . | . . . . . Robot Hit Streak 17 | 6 17 7 . . Robot Miss Streak 4 | 3 4 3 . . Penetration Max . | . . . . . Secondary Targets 1 | . . 1 . . Max Gunslinging Chain 1 | . . 1 . . Shots Hit Robots 133 | 29 43 61 . . Core Hits 64 | 12 28 24 . . Critical Kills 2 | . . 2 . . Critical Parts Destroyed . | . . . . . Critical Strikes 2 | . . 2 . . Destroy 2 | . . 2 . . Melee Attacks . | . . . . . Impact . | . . . . . Slashing . | . . . . . Piercing . | . . . . . Sneak Attacks . | . . . . . Combat Hostiles . | . . . . . Follow-up Attacks . | . . . . . Damage Inflicted 1253 | 240 530 483 . . Guns 1090 | 240 367 483 . . Cannons . | . . . . . Explosions 163 | . 163 . . . Melee . | . . . . . Ramming . | . . . . . Kinetic 1090 | 240 367 483 . . Thermal . | . . . . . Explosive 163 | . 163 . . . Electromagnetic . | . . . . . Impact . | . . . . . Slashing . | . . . . . Piercing . | . . . . . Highest Corruption . | . . . . . Average Corruption . | . . . . . Corruption Purged . | . . . . . Corruption Blocked . | . . . . . Overload Shots . | . . . . . Overflow Damage . | . . . . . Projectiles . | . . . . . Explosions . | . . . . . Melee . | . . . . . Knockbacks . | . . . . . Impact . | . . . . . Kinetic . | . . . . . Secondary . | . . . . . Self-Inflicted Damage . | . . . . . Shots . | . . . . . Rammed . | . . . . . Targets Rammed . | . . . . . Kicked . | . . . . . Crushed . | . . . . . Highest Temperature 93 | . 41 93 . . Average Temperature 34 | . 16 39 . . Received Heat Transfer 513 | . 138 351 . 24 Siege Activations . | . . . . . Robots Corrupted . | . . . . . Combat Hostiles . | . . . . . Parts Fried . | . . . . . Impact Corruptions . | . . . . . Robots Melted . | . . . . . Combat Hostiles . | . . . . . Parts Melted 1 | . 1 . . . Heat Transferred . | . . . . . Parts Sabotaged . | . . . . . Parts Stolen . | . . . . . Parts Stripped . | . . . . . Power Chain Reactions . | . . . . . Alert | -11 -10 -10 -10 -9 ------- Run | Yrd Mat Min Exi Min Peak Influence 254 | 30 254 110 . . Initial 19 | . 19 . . . Average 49 | 19 56 45 . . Maximum Alert Level 1 | . 1 . . . Low Security (%) 94 | 100 91 100 . 100 Level 1 5 | . 8 . . . Level 2 . | . . . . . Level 3 . | . . . . . Level 4 . | . . . . . Level 5 . | . . . . . High Security . | . . . . . Max Security . | . . . . . Squads Dispatched . | . . . . . Investigation . | . . . . . Extermination . | . . . . . Reinforcement . | . . . . . Assault . | . . . . . Garrison . | . . . . . Intercept . | . . . . . Searches Triggered . | . . . . . Construction Impeded . | . . . . . Haulers Reinforced . | . . . . . Active Scanning Responses . | . . . . . Cargo Convoy Interrupts . | . . . . . Stealth | -11 -10 -10 -10 -9 --------- Run | Yrd Mat Min Exi Min Distress Signals . | . . . . . Communications Jammed . | . . . . . Distress Signals . | . . . . . Times Spotted 22 | . 13 6 . 3 Peak Tracking Total 3 | . 3 2 . 3 Tactical Retreats . | . . . . . Traps | -11 -10 -10 -10 -9 ------- Run | Yrd Mat Min Exi Min Traps Triggered 2 | . 2 . . . Indirectly . | . . . . . Trap Hack Attempts . | . . . . . Triggered . | . . . . . Disarmed . | . . . . . Reprogrammed . | . . . . . Reused . | . . . . . Traps Extracted . | . . . . . Installed . | . . . . . Triggered . | . . . . . Machines | -11 -10 -10 -10 -9 ---------- Run | Yrd Mat Min Exi Min Machines Disabled 1 | . 1 . . . Max in Single Turn 1 | . 1 . . . Machines Repaired . | . . . . . Machines Dismantled . | . . . . . Machines Sabotaged . | . . . . . Overloaded Fab Kills . | . . . . . Hacking | -11 -10 -10 -10 -9 --------- Run | Yrd Mat Min Exi Min Machines Accessed 10 | . 9 . 1 . Terminals 7 | . 7 . . . Fabricators . | . . . . . Repair Stations 1 | . 1 . . . Recycling Units 1 | . 1 . . . Scanalyzers . | . . . . . Garrison Access . | . . . . . Total Hacks 35 | . 34 . 1 . Successful 20 | . 19 . 1 . Failed 14 | . 14 . . . Catastrophic 2 | . 2 . . . Database Lockouts 1 | . 1 . . . Manual 27 | . 26 . 1 . Terminals 30 | . 30 . . . Fabricators . | . . . . . Repair Stations 2 | . 2 . . . Recycling Units 2 | . 2 . . . Scanalyzers . | . . . . . Garrison Access . | . . . . . Terminal Hacks 13 | . 12 . 1 . Part Schematic 1 | . 1 . . . Robot Analysis 5 | . 5 . . . Prototype ID Bank 3 | . 3 . . . Terminal Index 1 | . 1 . . . Unreport Threat 2 | . 2 . . . Derelict Proto ID Bank 1 | . . . 1 . Fabricator Hacks . | . . . . . Repair Station Hacks 2 | . 2 . . . Scan Component 1 | . 1 . . . Repair 1 | . 1 . . . Recycling Unit Hacks . | . . . . . Scanalyzer . | . . . . . Garrison Access Hacks . | . . . . . Unauthorized Hacks 5 | . 5 . . . Terminals 5 | . 5 . . . Track 1 | . 1 . . . Botnet 2 | . 2 . . . Disrupt 1 | . 1 . . . Operators 1 | . 1 . . . Fabricators . | . . . . . Repair Stations . | . . . . . Recycling Units . | . . . . . Scanalyzers . | . . . . . Garrison Access . | . . . . . Data Cores Recovered . | . . . . . Used . | . . . . . Hacking Detections 9 | . 9 . . . Full Trace Events . | . . . . . Feedback Events . | . . . . . Feedback Blocked . | . . . . . Robot Schematics Acquired . | . . . . . Robots Built . | . . . . . Authchips . | . . . . . Time . | . . . . . Total Robot Build Rating . | . . . . . Part Schematics Acquired 1 | . 1 . . . Parts Built . | . . . . . Authchips . | . . . . . Time . | . . . . . Total Part Build Rating . | . . . . . Parts Repaired 1 | . 1 . . . Time 26 | . 26 . . . Parts Recycled . | . . . . . Recycled Matter . | . . . . . Retrieved Matter . | . . . . . Retrieved Components . | . . . . . Parts Scanalyzed . | . . . . . Part Schematics Acquired . | . . . . . Parts Damaged . | . . . . . Bothacking | -11 -10 -10 -10 -9 ------------ Run | Yrd Mat Min Exi Min Used RIF Installer . | . . . . . Robots Hacked . | . . . . . Non-combat . | . . . . . Combat . | . . . . . Robot Hacks Applied . | . . . . . Relay Couplers Released . | . . . . . Fabnet Peak Effective % . | . . . . . Robots Rewired . | . . . . . Allies Hacked . | . . . . . Hacks Repelled . | . . . . . Allies | -11 -10 -10 -10 -9 -------- Run | Yrd Mat Min Exi Min Total Allies . | . . . . . Largest Group . | . . . . . Highest-Rated Group . | . . . . . Highest-Rated Ally . | . . . . . Total Orders . | . . . . . Ally Attacks . | . . . . . Total Damage . | . . . . . Kills . | . . . . . Allies Corrupted . | . . . . . Allies Melted . | . . . . . Intel | -11 -10 -10 -10 -9 ------- Run | Yrd Mat Min Exi Min Robot Analysis Total 5 | . 5 . . . Derelict Logs Recovered 1 | . . 1 . . Drone Launches . | . . . . . Drone Recoveries . | . . . . . Exploration | -11 -10 -10 -10 -9 ------------- Run | Yrd Mat Min Exi Min Turns Passed 3082 | 267 1636 680 494 5 Spaces Moved 1667 | 111 866 342 346 2 Core 1 | 1 . . . . Treads . | . . . . . Legs . | . . . . . Wheels 1666 | 110 866 342 346 2 Hover . | . . . . . Flight . | . . . . . Fastest Speed 50 | 50 90 140 140 140 Average Speed 136 | 90 139 140 140 140 Slowest Speed 200 | 100 200 140 140 140 Overloaded Moves . | . . . . . Propulsion Burnouts . | . . . . . Robots Hopped . | . . . . . Cave-ins Triggered . | . . . . . Exploration Rate (%) 39 | 5 98 30 62 2 Regions Visited 4 Branch Regions 3 Pre-discovered Areas . | . . . . . Known Exits Taken . | . . . . . Unknown Exits Taken 4 | 1 1 1 1 . Scrap Searched . | . . . . . Spaces Dug . | . . . . . Terrain Destroyed 4 | . 4 . . . Melee . | . . . . . Projectile . | . . . . . AOE 4 | . 4 . . . Terrain Rammed . | . . . . . Walls Destroyed . | . . . . . Machines Disabled . | . . . . . Actions | -11 -10 -10 -10 -9 --------- Run | Yrd Mat Min Exi Min Total 2325 | 246 1241 473 359 6 Wait 438 | 91 287 60 . . Move 1663 | 110 865 341 345 2 Hop . | . . . . . Pick Up 56 | 13 27 9 7 . Fast Attach 10 | 6 4 . . . Attach 6 | 1 1 4 . . Detach . | . . . . . Swap 13 | . 6 6 . 1 Drop 34 | 4 13 7 7 3 Fire 105 | 21 38 46 . . Melee . | . . . . . Ram . | . . . . . Kick . | . . . . . Crush . | . . . . . Escape Stasis . | . . . . . Rewire . | . . . . . Trap . | . . . . . Miscellaneous . | . . . . . Route ------- -11/Scrapyard -10/Materials (discovered 4 exits: [*Mat x3] / [*Min]) -10/Mines -10/Exiles -9/Mines History --------- Turn | Location | Event 27 | -11/Scrapyard | Discovered new exit (range 15) 268 | -11/Scrapyard | Entered Materials 316 | -10/Materials | Build established: Mutant 388 | -10/Materials | Discovered new exit (range 10) 692 | -10/Materials | Discovered new exit (range 8) 825 | -10/Materials | Discovered new exit (range 15) 1176 | -10/Materials | Repaired Lgt. Ion Engine 1280 | -10/Materials | Discovered new exit (range 10) 1757 | -10/Materials | Central database locked down 1904 | -10/Materials | Entered Mines 2037 | -10/Mines | Core integrity fell below 50% 2212 | -10/Mines | Learned Materials stockpile data 2282 | -10/Mines | Deemed a non-threat by the Exiles lab entrance 2282 | -10/Mines | Discovered new exit (range 5) 2584 | -10/Mines | Entered Exiles 2618 | -10/Exiles | Met 8R-AWN 2642 | -10/Exiles | Met EX-HEX 2691 | -10/Exiles | Met EX-BIN 2706 | -10/Exiles | Aligned with FarCom system 2708 | -10/Exiles | Given EX-Vault access code 2743 | -10/Exiles | Opened EX-Vault 2753 | -10/Exiles | Found PSU Rigger 2756 | -10/Exiles | Found Chronowheel 2788 | -10/Exiles | Warned to stay clear of 0b10 Research branches 2837 | -10/Exiles | Met EX-DEC 3060 | -10/Exiles | Discovered new exit (range 14) 3078 | -10/Exiles | Stole two prototypes: PSU Rigger, Chronowheel 3078 | -10/Exiles | Entered Mines 3083 | -9/Mines | Core integrity fell below 20% 3083 | -9/Mines | Destroyed by Reinforced Deuterium Engine chain reaction Last Messages --------------- 02879_ Extracted 45 matter. 03033_ Dropped Aluminum Leg. 03035_ Acquired Aluminum Leg. 03037_ Dropped Aluminum Leg. 03038_ Acquired Rigged Rnf. Deuterium Engine. 03047_ Dropped Med. Laser. 03048_ Acquired Rigged Rnf. Deuterium Engine. 03060_ EXIT=FOUND LOCATION=UNKNOWN GOAL=ESCAPE 03078_ Receiving FarCom transmissions... 03080_ Dropped Rigged Rnf. Deuterium Engine. 03080_ Rigged Rnf. Deuterium Engine explodes. 03080_ Med. Armor Plating destroyed. 03080_ G-34 Mercenary destroyed. 03081_ Dropped Rigged Rnf. Deuterium Engine. 03082_ Rigged Rnf. Deuterium Engine explodes. 03082_ Dropped Rigged Rnf. Deuterium Engine. 03083_ Rigged Rnf. Deuterium Engine explodes. Map ----- +----------------------------------------------------+ | | | | | | | | | | | | | | | | | | | | | | | | | | | | | | | | | | | | | | | | | ??????#### ##???????????????????????? | | ??????#; ;##?????????????????????? | | ??????#g #?????????????????????? | | ??????#=% #?????????????????????? | | ??????# = b #?????????????????????? | | ??????# @ #?????????????????????? | | ??????# #?????????????????????? | | ??????## ######?????????????????????? | | ???????# ???????????????????????????? | | ???????# ???????????????????????????? | | ???????#????????????????????????????? | | ????????????????????????????????????? | | ????????????????????????????????????? | | ????????????????????????????????????? | | ????????????????????????????????????? | | ????????????????????????????????????? | | ????????????????????????????????????? | | ???????????????????C????????????????? | | ????????????????????????????????????? | | ????????????????????????????????????? | | ????????????????????????????????????? | | ????????????????????????????????????? | | ????????????????????????????????????? | | ????????????????????????????????????? | | ????????????????????????????????????? | | ????????????????????????????????????? | | ????????????????????????????????????? | | ????????????????????????????????????? | | ????????????????????????????????????? | | ????????????????????????????????????? | +----------------------------------------------------+ Best States ------------- Heat Dissipation 25 Energy Generation 10 Energy Capacity 125 Matter Stores 300 Matter Capacity 300 Sight Range 16 Terrain Scan Density 10 Armor Coverage 225 Evasion (%) 42 Item Schematics ----------------- Hcp. Storage Unit | -10/Materials | Hacked Robot Schematics ------------------ None Fabricated ------------ Nothing Alien Tech Used ----------------- None Achievements -------------- None Challenges ------------ None Game ------ Seed PhaseRecoilSegregator Manual? 0 Play Time 00:21:33 Cumulative 213.3 hours Start 2024.06.07 @ 22:02:04 End 2024.06.07 @ 22:24:29 Sessions 1 Manual Loads 0 Difficulty Rogue Special Mode None Game No. 119 Rogue 119 Adventurer 0 Explorer 0 Win Type - Total 3 Types 3/0/0/0/0/0/0/0/0 Lore% 57 Gallery% 62 Achievement% 53 Wizard Run 0 Options --------- Layout 1 ASCII 0 Keyboard 1 Movement Vi Keybinds 0 Fullscreen 2 Font 24/Smallcaps Map View 50x35 Zoom Use 0% Tactical HUD 1 Map Filters NONE Filters NONE Steam 1 RUN: b9e10341-ad93-4831-a17b-ea74c7ceb134